[Event "Early-Titled-Tuesday-Blitz-December-26-2023"]
[Site "Chess.com"]
[Date "2023.12.26"]
[Round "8"]
[White "Msb2"]
[Black "Evgeny81"]
[Result "1-0"]
[WhiteElo "3007"]
[BlackElo "2774"]
[TimeControl "180+1"]
[EndTime "9:24:20 PST"]
[Termination "Msb2 won by resignation"]

1. d4 {[%clk 0:03:00.9]} 1... Nf6 {[%clk 0:02:57]} 2. c4 {[%clk 0:03:01.6]} 2...
e6 {[%clk 0:02:57]} 3. Nc3 {[%clk 0:03:02.4]} 3... Bb4 {[%clk 0:02:57.1]} 4. e3
{[%clk 0:03:03]} 4... c5 {[%clk 0:02:56.5]} 5. Ne2 {[%clk 0:03:03]} 5... d5
{[%clk 0:02:53.6]} 6. a3 {[%clk 0:03:03.4]} 6... Ba5 {[%clk 0:02:53.9]} 7. dxc5
{[%clk 0:03:02.3]} 7... dxc4 {[%clk 0:02:54.3]} 8. Bd2 {[%clk 0:03:03]} 8...
Nbd7 {[%clk 0:02:48.6]} 9. Ng3 {[%clk 0:03:02.4]} 9... Nxc5 {[%clk 0:02:45.4]}
10. Bxc4 {[%clk 0:03:02.7]} 10... Nd3+ {[%clk 0:02:38.6]} 11. Bxd3 {[%clk
0:03:00.7]} 11... Qxd3 {[%clk 0:02:39.5]} 12. Qa4+ {[%clk 0:03:00.4]} 12... Bd7
{[%clk 0:02:38.1]} 13. Qxa5 {[%clk 0:02:58.8]} 13... Bc6 {[%clk 0:02:34.9]} 14.
f3 {[%clk 0:02:49.6]} 14... Rd8 {[%clk 0:02:33.5]} 15. O-O-O {[%clk 0:02:41.9]}
15... O-O {[%clk 0:02:28.3]} 16. e4 {[%clk 0:02:37.3]} 16... b6 {[%clk
0:02:24.3]} 17. Qg5 {[%clk 0:02:34]} 17... Rc8 {[%clk 0:02:11.4]} 18. Bf4 {[%clk
0:02:17.6]} 18... Qc4 {[%clk 0:02:10.2]} 19. Be5 {[%clk 0:02:18.1]} 19... Ne8
{[%clk 0:02:07.9]} 20. Bxg7 {[%clk 0:02:18.6]} 1-0

[Event "Early-Titled-Tuesday-Blitz-December-26-2023"]
[Site "Chess.com"]
[Date "2023.12.26"]
[Round "8"]
[White "The_Straightforward_Rook"]
[Black "LuisFSiles"]
[Result "0-1"]
[WhiteElo "2484"]
[BlackElo "2284"]
[TimeControl "180+1"]
[EndTime "9:25:13 PST"]
[Termination "LuisFSiles won by resignation"]

1. e4 {[%clk 0:02:55.3]} 1... c5 {[%clk 0:02:58.9]} 2. c3 {[%clk 0:02:54.3]}
2... d5 {[%clk 0:02:57.8]} 3. exd5 {[%clk 0:02:54.2]} 3... Nf6 {[%clk
0:02:58.4]} 4. Bb5+ {[%clk 0:02:52.8]} 4... Nbd7 {[%clk 0:02:54.8]} 5. Nf3
{[%clk 0:02:40.5]} 5... Nxd5 {[%clk 0:02:51.7]} 6. O-O {[%clk 0:02:40.6]} 6...
e6 {[%clk 0:02:49.4]} 7. d4 {[%clk 0:02:37]} 7... cxd4 {[%clk 0:02:48.8]} 8.
cxd4 {[%clk 0:02:35.3]} 8... Be7 {[%clk 0:02:43]} 9. Nc3 {[%clk 0:02:33.6]} 9...
Nxc3 {[%clk 0:02:41.3]} 10. bxc3 {[%clk 0:02:34.5]} 10... O-O {[%clk 0:02:40.9]}
11. Re1 {[%clk 0:02:29.6]} 11... b6 {[%clk 0:02:26]} 12. Bf4 {[%clk 0:02:23.5]}
12... Bb7 {[%clk 0:02:20.3]} 13. a4 {[%clk 0:02:22.4]} 13... Rc8 {[%clk
0:02:14.1]} 14. Re3 {[%clk 0:02:17.2]} 14... Nf6 {[%clk 0:02:12.9]} 15. Bg5
{[%clk 0:01:55.6]} 15... Nd5 {[%clk 0:02:10.8]} 16. Bxe7 {[%clk 0:01:52.6]}
16... Qxe7 {[%clk 0:02:04.2]} 17. a5 {[%clk 0:01:39.3]} 17... Nxe3 {[%clk
0:01:57.5]} 18. fxe3 {[%clk 0:01:40.2]} 18... Rxc3 {[%clk 0:01:56.9]} 19. axb6
{[%clk 0:01:39.7]} 19... axb6 {[%clk 0:01:56.9]} 20. Ne5 {[%clk 0:01:39.7]}
20... Qg5 {[%clk 0:01:51.2]} 0-1

[Event "Early-Titled-Tuesday-Blitz-December-26-2023"]
[Site "Chess.com"]
[Date "2023.12.26"]
[Round "8"]
[White "ChessSwole"]
[Black "missponyo10"]
[Result "1-0"]
[WhiteElo "2705"]
[BlackElo "2247"]
[TimeControl "180+1"]
[EndTime "9:25:26 PST"]
[Termination "ChessSwole won by resignation"]

1. d4 {[%clk 0:03:00.1]} 1... d5 {[%clk 0:02:59.4]} 2. Nc3 {[%clk 0:02:59.7]}
2... Nf6 {[%clk 0:02:57.8]} 3. Bf4 {[%clk 0:03:00]} 3... Bf5 {[%clk 0:02:55.5]}
4. e3 {[%clk 0:02:59.6]} 4... e6 {[%clk 0:02:55.3]} 5. Bd3 {[%clk 0:02:59.3]}
5... Bxd3 {[%clk 0:02:54.8]} 6. cxd3 {[%clk 0:03:00.2]} 6... c5 {[%clk
0:02:51.5]} 7. Nf3 {[%clk 0:02:56.6]} 7... Be7 {[%clk 0:02:48.7]} 8. dxc5 {[%clk
0:02:51.4]} 8... Bxc5 {[%clk 0:02:47.2]} 9. O-O {[%clk 0:02:51.1]} 9... O-O
{[%clk 0:02:46.7]} 10. d4 {[%clk 0:02:49.6]} 10... Bd6 {[%clk 0:02:43.6]} 11.
Ne5 {[%clk 0:02:47.3]} 11... Nc6 {[%clk 0:02:41.7]} 12. Nxc6 {[%clk 0:02:47.2]}
12... bxc6 {[%clk 0:02:41.9]} 13. Bxd6 {[%clk 0:02:48.1]} 13... Qxd6 {[%clk
0:02:42.4]} 14. Na4 {[%clk 0:02:48.7]} 14... Nd7 {[%clk 0:02:39.8]} 15. Rc1
{[%clk 0:02:48.1]} 15... Rfc8 {[%clk 0:02:39.8]} 16. Nc5 {[%clk 0:02:41.7]}
16... Nxc5 {[%clk 0:02:38.7]} 17. Rxc5 {[%clk 0:02:42.6]} 17... Rab8 {[%clk
0:02:38.7]} 18. Qc2 {[%clk 0:02:41.9]} 18... Rb6 {[%clk 0:02:36.7]} 19. Rc1
{[%clk 0:02:41.4]} 19... Rcb8 {[%clk 0:02:34.7]} 20. Rxc6 {[%clk 0:02:26.4]}
20... Qxc6 {[%clk 0:02:26.4]} 21. Qxc6 {[%clk 0:02:25.9]} 21... Rxc6 {[%clk
0:02:27.3]} 22. Rxc6 {[%clk 0:02:26.3]} 22... g6 {[%clk 0:02:26.8]} 23. b3
{[%clk 0:02:26.3]} 23... Rb7 {[%clk 0:02:26]} 24. g4 {[%clk 0:02:24.7]} 24...
Kf8 {[%clk 0:02:25.7]} 25. g5 {[%clk 0:02:21.4]} 25... Kg7 {[%clk 0:02:21.8]}
26. h4 {[%clk 0:02:19.6]} 26... h6 {[%clk 0:02:21]} 27. Kg2 {[%clk 0:02:19.8]}
27... hxg5 {[%clk 0:02:21.1]} 28. hxg5 {[%clk 0:02:20.7]} 28... Kf8 {[%clk
0:02:21.4]} 29. Kf3 {[%clk 0:02:15.1]} 29... Ke7 {[%clk 0:02:21.4]} 30. Kf4
{[%clk 0:02:11.6]} 30... Kd7 {[%clk 0:02:21]} 31. Ra6 {[%clk 0:02:11.6]} 31...
Rc7 {[%clk 0:02:15.9]} 32. Ke5 {[%clk 0:02:09.7]} 32... Ke7 {[%clk 0:02:12.8]}
33. b4 {[%clk 0:02:02.5]} 33... Kd7 {[%clk 0:02:12.8]} 34. Kf6 {[%clk
0:02:02.5]} 34... Rb7 {[%clk 0:02:11.2]} 35. Kxf7 {[%clk 0:01:59]} 35... Rxb4
{[%clk 0:02:11.1]} 36. Rxa7+ {[%clk 0:01:57.2]} 36... Kd6 {[%clk 0:02:11]} 37.
Ra6+ {[%clk 0:01:52.7]} 37... Kd7 {[%clk 0:02:10]} 38. Rxe6 {[%clk 0:01:52.3]}
1-0

[Event "Early-Titled-Tuesday-Blitz-December-26-2023"]
[Site "Chess.com"]
[Date "2023.12.26"]
[Round "8"]
[White "Keaton87"]
[Black "SmirnovTimofey2000"]
[Result "1-0"]
[WhiteElo "2650"]
[BlackElo "2029"]
[TimeControl "180+1"]
[EndTime "9:25:55 PST"]
[Termination "Keaton87 won by resignation"]

1. d4 {[%clk 0:03:00.2]} 1... d5 {[%clk 0:02:59.4]} 2. Nf3 {[%clk 0:02:59.2]}
2... Nf6 {[%clk 0:02:59.4]} 3. Bg5 {[%clk 0:02:58]} 3... e6 {[%clk 0:02:55.4]}
4. Nbd2 {[%clk 0:02:57.2]} 4... Be7 {[%clk 0:02:53.5]} 5. e3 {[%clk 0:02:57.4]}
5... O-O {[%clk 0:02:52.6]} 6. Bd3 {[%clk 0:02:57.3]} 6... Nbd7 {[%clk
0:02:49.6]} 7. Ne5 {[%clk 0:02:56.7]} 7... h6 {[%clk 0:02:46.3]} 8. Bh4 {[%clk
0:02:55.3]} 8... Nxe5 {[%clk 0:02:44.3]} 9. dxe5 {[%clk 0:02:54.9]} 9... Nd7
{[%clk 0:02:44.9]} 10. Bxe7 {[%clk 0:02:54.9]} 10... Qxe7 {[%clk 0:02:45]} 11.
f4 {[%clk 0:02:55]} 11... b6 {[%clk 0:02:31]} 12. O-O {[%clk 0:02:54.1]} 12...
Bb7 {[%clk 0:02:29.6]} 13. Qh5 {[%clk 0:02:53.2]} 13... f5 {[%clk 0:02:19.9]}
14. exf6 {[%clk 0:02:52.6]} 14... Nxf6 {[%clk 0:02:19.7]} 15. Qh4 {[%clk
0:02:52.3]} 15... Rae8 {[%clk 0:02:15.9]} 16. Nf3 {[%clk 0:02:51.6]} 16... Nd7
{[%clk 0:02:09.7]} 17. Qh5 {[%clk 0:02:46.4]} 17... Qf7 {[%clk 0:02:05.5]} 18.
Bg6 {[%clk 0:02:45.2]} 18... Qe7 {[%clk 0:01:55.9]} 19. Bxe8 {[%clk 0:02:45.1]}
19... Rxe8 {[%clk 0:01:56.6]} 20. Ne5 {[%clk 0:02:45.3]} 20... Nxe5 {[%clk
0:01:56.7]} 21. Qxe5 {[%clk 0:02:44.8]} 21... Rf8 {[%clk 0:01:53]} 22. f5 {[%clk
0:02:43.2]} 22... Re8 {[%clk 0:01:36.1]} 23. f6 {[%clk 0:02:41.5]} 23... gxf6
{[%clk 0:01:33.2]} 24. Rxf6 {[%clk 0:02:41.8]} 24... Qg7 {[%clk 0:01:27.5]} 25.
Raf1 {[%clk 0:02:40.3]} 25... d4 {[%clk 0:01:21]} 26. e4 {[%clk 0:02:40]} 26...
Re7 {[%clk 0:01:02.3]} 27. R1f3 {[%clk 0:02:37.4]} 27... Kh7 {[%clk 0:00:54.3]}
28. Rg3 {[%clk 0:02:35.8]} 28... Qh8 {[%clk 0:00:32.9]} 29. Rxh6+ {[%clk
0:02:35.3]} 1-0

[Event "Early-Titled-Tuesday-Blitz-December-26-2023"]
[Site "Chess.com"]
[Date "2023.12.26"]
[Round "8"]
[White "GoValya"]
[Black "SCIM"]
[Result "0-1"]
[WhiteElo "2303"]
[BlackElo "2518"]
[TimeControl "180+1"]
[EndTime "9:26:15 PST"]
[Termination "SCIM won by checkmate"]

1. d4 {[%clk 0:03:00.9]} 1... Nf6 {[%clk 0:02:55.7]} 2. c4 {[%clk 0:02:58.3]}
2... g6 {[%clk 0:02:55.5]} 3. Nc3 {[%clk 0:02:54.7]} 3... d5 {[%clk 0:02:56]} 4.
cxd5 {[%clk 0:02:54.2]} 4... Nxd5 {[%clk 0:02:56.9]} 5. e4 {[%clk 0:02:54.6]}
5... Nxc3 {[%clk 0:02:56.7]} 6. bxc3 {[%clk 0:02:55.5]} 6... Bg7 {[%clk
0:02:56.7]} 7. Nf3 {[%clk 0:02:53.4]} 7... c5 {[%clk 0:02:56.1]} 8. Be2 {[%clk
0:02:51]} 8... O-O {[%clk 0:02:49.4]} 9. O-O {[%clk 0:02:51]} 9... Qc7 {[%clk
0:02:42.8]} 10. Be3 {[%clk 0:02:39.6]} 10... b6 {[%clk 0:02:41.5]} 11. Rc1
{[%clk 0:02:29.4]} 11... Bb7 {[%clk 0:02:40.2]} 12. e5 {[%clk 0:02:28.5]} 12...
Nc6 {[%clk 0:02:36.7]} 13. Qb3 {[%clk 0:02:02.6]} 13... Na5 {[%clk 0:02:35.7]}
14. Qb2 {[%clk 0:01:52.1]} 14... c4 {[%clk 0:02:32.6]} 15. Rfd1 {[%clk
0:01:34.9]} 15... Bd5 {[%clk 0:02:31.9]} 16. Bg5 {[%clk 0:01:24.6]} 16... f6
{[%clk 0:02:30.3]} 17. Bf4 {[%clk 0:01:17.5]} 17... Qc6 {[%clk 0:02:28.8]} 18.
Qb4 {[%clk 0:01:06]} 18... Rae8 {[%clk 0:02:24]} 19. Rd2 {[%clk 0:00:46.7]}
19... g5 {[%clk 0:02:23.3]} 20. Bg3 {[%clk 0:00:44.7]} 20... h6 {[%clk
0:02:21.5]} 21. Bd1 {[%clk 0:00:40.4]} 21... Qb7 {[%clk 0:02:09.7]} 22. exf6
{[%clk 0:00:29.1]} 22... exf6 {[%clk 0:02:09.3]} 23. Bd6 {[%clk 0:00:25.3]}
23... g4 {[%clk 0:02:04]} 24. Nh4 {[%clk 0:00:24.1]} 24... Re1# {[%clk
0:02:02.9]} 0-1

[Event "Early-Titled-Tuesday-Blitz-December-26-2023"]
[Site "Chess.com"]
[Date "2023.12.26"]
[Round "8"]
[White "Shahdad2007"]
[Black "Aslanov_Umid"]
[Result "1-0"]
[WhiteElo "2360"]
[BlackElo "2543"]
[TimeControl "180+1"]
[EndTime "9:26:31 PST"]
[Termination "Shahdad2007 won by resignation"]

1. e4 {[%clk 0:03:00.9]} 1... c5 {[%clk 0:03:00.2]} 2. Nf3 {[%clk 0:03:00.8]}
2... d6 {[%clk 0:03:00.6]} 3. Bb5+ {[%clk 0:03:00.7]} 3... Bd7 {[%clk
0:03:00.7]} 4. Bxd7+ {[%clk 0:02:59.8]} 4... Qxd7 {[%clk 0:03:01.6]} 5. O-O
{[%clk 0:02:57.5]} 5... Nc6 {[%clk 0:03:01.6]} 6. c3 {[%clk 0:02:57.5]} 6... Nf6
{[%clk 0:02:59.3]} 7. Re1 {[%clk 0:02:57.5]} 7... e6 {[%clk 0:02:59.4]} 8. d4
{[%clk 0:02:58]} 8... cxd4 {[%clk 0:03:00.3]} 9. cxd4 {[%clk 0:02:58.9]} 9... d5
{[%clk 0:03:01.2]} 10. e5 {[%clk 0:02:59]} 10... Ne4 {[%clk 0:03:01.9]} 11. a3
{[%clk 0:02:59.6]} 11... Be7 {[%clk 0:03:01.7]} 12. Nbd2 {[%clk 0:03:00.1]}
12... Nxd2 {[%clk 0:03:01.7]} 13. Bxd2 {[%clk 0:02:59.5]} 13... O-O {[%clk
0:03:02.2]} 14. Qe2 {[%clk 0:02:57.7]} 14... a5 {[%clk 0:03:00.5]} 15. Qd3
{[%clk 0:02:49]} 15... f6 {[%clk 0:02:54.6]} 16. exf6 {[%clk 0:02:48.2]} 16...
Bxf6 {[%clk 0:02:55.5]} 17. Bc3 {[%clk 0:02:48.6]} 17... Rfe8 {[%clk 0:02:48.1]}
18. Re2 {[%clk 0:02:48.8]} 18... Re7 {[%clk 0:02:38.3]} 19. Rae1 {[%clk
0:02:49]} 19... Rae8 {[%clk 0:02:39]} 20. g3 {[%clk 0:02:46.2]} 20... Nd8 {[%clk
0:02:37.1]} 21. Bxa5 {[%clk 0:02:39]} 21... Nf7 {[%clk 0:02:35.1]} 22. Bb4
{[%clk 0:02:38.7]} 22... Nd6 {[%clk 0:02:35.7]} 23. Bxd6 {[%clk 0:02:38.6]}
23... Qxd6 {[%clk 0:02:35.9]} 24. b4 {[%clk 0:02:38.6]} 24... Ra8 {[%clk
0:02:34.7]} 25. Ne5 {[%clk 0:02:37.3]} 25... Bxe5 {[%clk 0:02:34.5]} 26. Rxe5
{[%clk 0:02:37.2]} 26... Rf8 {[%clk 0:02:27.5]} 27. Qe3 {[%clk 0:02:36.4]} 27...
Rf6 {[%clk 0:02:24.2]} 28. Rc1 {[%clk 0:02:34.6]} 28... h6 {[%clk 0:02:23.2]}
29. f4 {[%clk 0:02:34.4]} 29... Qa6 {[%clk 0:02:22.2]} 30. f5 {[%clk 0:02:30.3]}
30... Kh7 {[%clk 0:02:12.7]} 31. Re1 {[%clk 0:02:27.1]} 31... Qc4 {[%clk
0:01:58.5]} 32. fxe6 {[%clk 0:02:23.7]} 32... Qc2 {[%clk 0:01:56.6]} 33. Rc1
{[%clk 0:02:12.2]} 33... Qg6 {[%clk 0:01:54.5]} 34. Re1 {[%clk 0:02:03.7]} 34...
Qg4 {[%clk 0:01:48.5]} 35. Qd3+ {[%clk 0:01:59.5]} 35... Kg8 {[%clk 0:01:48.1]}
36. Rxd5 {[%clk 0:01:47.3]} 36... Rexe6 {[%clk 0:01:45.4]} 37. Rde5 {[%clk
0:01:43.5]} 37... Rxe5 {[%clk 0:01:41.4]} 38. dxe5 {[%clk 0:01:44.4]} 38... Rf3
{[%clk 0:01:41.7]} 39. Qd5+ {[%clk 0:01:42.6]} 39... Kh8 {[%clk 0:01:42.2]} 40.
e6 {[%clk 0:01:33.3]} 40... Rf5 {[%clk 0:01:42.1]} 41. Qd8+ {[%clk 0:01:32]}
41... Kh7 {[%clk 0:01:42.1]} 42. Qd3 {[%clk 0:01:32.7]} 42... g6 {[%clk
0:01:33]} 43. e7 {[%clk 0:01:31.1]} 43... Rf3 {[%clk 0:01:33.5]} 44. Qxf3 {[%clk
0:01:29.7]} 44... Qxf3 {[%clk 0:01:33.9]} 45. e8=Q {[%clk 0:01:30.2]} 1-0

[Event "Early-Titled-Tuesday-Blitz-December-26-2023"]
[Site "Chess.com"]
[Date "2023.12.26"]
[Round "8"]
[White "Pastore1978"]
[Black "PolinaYanch"]
[Result "1-0"]
[WhiteElo "2194"]
[BlackElo "1672"]
[TimeControl "180+1"]
[EndTime "9:27:14 PST"]
[Termination "Pastore1978 won by resignation"]

1. e4 {[%clk 0:03:00.9]} 1... c5 {[%clk 0:02:59.3]} 2. Nc3 {[%clk 0:03:00]} 2...
d6 {[%clk 0:02:56.4]} 3. f4 {[%clk 0:02:58.9]} 3... g6 {[%clk 0:02:56.1]} 4. Nf3
{[%clk 0:02:59.2]} 4... Bg7 {[%clk 0:02:56.5]} 5. Bc4 {[%clk 0:02:59.8]} 5... e6
{[%clk 0:02:56.8]} 6. O-O {[%clk 0:02:57.6]} 6... Ne7 {[%clk 0:02:56.1]} 7. d4
{[%clk 0:02:56.5]} 7... cxd4 {[%clk 0:02:55.8]} 8. Nb5 {[%clk 0:02:56.3]} 8...
a6 {[%clk 0:02:51.5]} 9. Nbxd4 {[%clk 0:02:54.1]} 9... b5 {[%clk 0:02:50.8]} 10.
Bb3 {[%clk 0:02:53.4]} 10... O-O {[%clk 0:02:48.4]} 11. c3 {[%clk 0:02:45.3]}
11... Bb7 {[%clk 0:02:44]} 12. f5 {[%clk 0:02:40.5]} 12... Bxe4 {[%clk
0:02:35.5]} 13. fxe6 {[%clk 0:02:39]} 13... d5 {[%clk 0:02:34.3]} 14. Ng5 {[%clk
0:02:25.7]} 14... f5 {[%clk 0:02:20]} 15. Nf7 {[%clk 0:02:07.5]} 15... Qc8
{[%clk 0:02:14]} 16. Bg5 {[%clk 0:02:03.1]} 16... Nec6 {[%clk 0:01:48.8]} 17.
Nxc6 {[%clk 0:01:55.4]} 17... Qxc6 {[%clk 0:01:48.2]} 18. Re1 {[%clk 0:01:12.7]}
18... Qxe6 {[%clk 0:01:40.3]} 19. Rxe4 {[%clk 0:01:12.6]} 19... fxe4 {[%clk
0:00:49.1]} 20. Bxd5 {[%clk 0:01:12.2]} 20... Qb6+ {[%clk 0:00:43.6]} 21. Kh1
{[%clk 0:01:08.8]} 21... Rxf7 {[%clk 0:00:43.4]} 22. Bxf7+ {[%clk 0:01:02.1]}
22... Kxf7 {[%clk 0:00:43.2]} 23. Qd5+ {[%clk 0:01:02.8]} 23... Qe6 {[%clk
0:00:39.7]} 24. Rf1+ {[%clk 0:00:57.4]} 1-0

[Event "Early-Titled-Tuesday-Blitz-December-26-2023"]
[Site "Chess.com"]
[Date "2023.12.26"]
[Round "8"]
[White "RodokininEV"]
[Black "UnTucopalaTimba"]
[Result "1-0"]
[WhiteElo "2562"]
[BlackElo "2160"]
[TimeControl "180+1"]
[EndTime "9:27:21 PST"]
[Termination "RodokininEV won by resignation"]

1. c4 {[%clk 0:03:00.9]} 1... c6 {[%clk 0:02:57.9]} 2. Nf3 {[%clk 0:02:59.8]}
2... d5 {[%clk 0:02:57.4]} 3. e3 {[%clk 0:03:00.7]} 3... Nf6 {[%clk 0:02:56.2]}
4. b3 {[%clk 0:03:00.8]} 4... Bf5 {[%clk 0:02:52.6]} 5. Bb2 {[%clk 0:03:00.9]}
5... e6 {[%clk 0:02:48.8]} 6. Be2 {[%clk 0:02:58]} 6... Nbd7 {[%clk 0:02:47.9]}
7. Nh4 {[%clk 0:02:55.8]} 7... Bg6 {[%clk 0:02:43.6]} 8. Nxg6 {[%clk 0:02:55.6]}
8... hxg6 {[%clk 0:02:43.2]} 9. O-O {[%clk 0:02:56.5]} 9... Qc7 {[%clk
0:02:42.5]} 10. f4 {[%clk 0:02:56.1]} 10... O-O-O {[%clk 0:02:36.4]} 11. Nc3
{[%clk 0:02:55.3]} 11... Nb6 {[%clk 0:02:24.2]} 12. Qc2 {[%clk 0:02:52.1]} 12...
d4 {[%clk 0:02:20.8]} 13. Ne4 {[%clk 0:02:48.4]} 13... Nxe4 {[%clk 0:01:59.5]}
14. Qxe4 {[%clk 0:02:48.9]} 14... dxe3 {[%clk 0:01:52.2]} 15. dxe3 {[%clk
0:02:49.8]} 15... Nd7 {[%clk 0:01:46.6]} 16. a3 {[%clk 0:02:37.6]} 16... Nc5
{[%clk 0:01:45]} 17. Qc2 {[%clk 0:02:37]} 17... Qe7 {[%clk 0:01:36.4]} 18. Bf3
{[%clk 0:02:33.5]} 18... Qh4 {[%clk 0:01:28.2]} 19. g3 {[%clk 0:02:32.5]} 19...
Qe7 {[%clk 0:01:27.1]} 20. Rad1 {[%clk 0:02:29.6]} 20... f6 {[%clk 0:01:19.7]}
21. b4 {[%clk 0:02:29.3]} 21... Rxd1 {[%clk 0:01:14.9]} 22. Rxd1 {[%clk
0:02:28.1]} 22... Nd7 {[%clk 0:01:14.3]} 23. Qxg6 {[%clk 0:02:26.6]} 23... Rh6
{[%clk 0:01:11]} 24. Qd3 {[%clk 0:02:22.6]} 24... f5 {[%clk 0:01:06.1]} 25. b5
{[%clk 0:02:16.5]} 25... c5 {[%clk 0:01:03.3]} 26. a4 {[%clk 0:02:12.9]} 26...
e5 {[%clk 0:00:49.1]} 27. Bxe5 {[%clk 0:02:10.1]} 27... Nxe5 {[%clk 0:00:47.6]}
28. fxe5 {[%clk 0:02:11]} 28... Re6 {[%clk 0:00:39.7]} 29. Qxf5 {[%clk
0:02:01.9]} 29... Kc7 {[%clk 0:00:38.8]} 30. Rd5 {[%clk 0:01:53.9]} 30... g6
{[%clk 0:00:36.2]} 31. Qe4 {[%clk 0:01:50.3]} 31... Kc8 {[%clk 0:00:29.5]} 32.
a5 {[%clk 0:01:47.8]} 32... Bh6 {[%clk 0:00:28.5]} 33. Kg2 {[%clk 0:01:43.1]}
33... Bg5 {[%clk 0:00:22.9]} 34. Qg4 {[%clk 0:01:40.1]} 34... b6 {[%clk
0:00:19.5]} 35. a6 {[%clk 0:01:38.7]} 35... Bxe3 {[%clk 0:00:18]} 36. Rd6 {[%clk
0:01:37.9]} 1-0

[Event "Early-Titled-Tuesday-Blitz-December-26-2023"]
[Site "Chess.com"]
[Date "2023.12.26"]
[Round "8"]
[White "SARGISMV"]
[Black "Alex_Banzea"]
[Result "1-0"]
[WhiteElo "2549"]
[BlackElo "2640"]
[TimeControl "180+1"]
[EndTime "9:27:22 PST"]
[Termination "SARGISMV won by resignation"]

1. d4 {[%clk 0:03:00.9]} 1... Nf6 {[%clk 0:02:52.7]} 2. c4 {[%clk 0:03:00.5]}
2... g6 {[%clk 0:02:53]} 3. Nc3 {[%clk 0:03:00]} 3... Bg7 {[%clk 0:02:53.3]} 4.
e4 {[%clk 0:02:59.9]} 4... d6 {[%clk 0:02:53.7]} 5. Nf3 {[%clk 0:02:57.8]} 5...
O-O {[%clk 0:02:53]} 6. Be2 {[%clk 0:02:57.9]} 6... Qe8 {[%clk 0:02:52]} 7. O-O
{[%clk 0:02:43.7]} 7... e5 {[%clk 0:02:51.8]} 8. Re1 {[%clk 0:02:37.5]} 8...
exd4 {[%clk 0:02:50.6]} 9. Nxd4 {[%clk 0:02:37.2]} 9... Nxe4 {[%clk 0:02:50.9]}
10. Nd5 {[%clk 0:02:13.6]} 10... Qd8 {[%clk 0:02:49.5]} 11. Bf3 {[%clk
0:01:45.8]} 11... Nf6 {[%clk 0:02:46.7]} 12. Bg5 {[%clk 0:01:39.6]} 12... c6
{[%clk 0:02:44]} 13. Ne7+ {[%clk 0:01:29.5]} 13... Kh8 {[%clk 0:02:43.8]} 14.
Qd2 {[%clk 0:01:29.6]} 14... Na6 {[%clk 0:02:36.1]} 15. Qf4 {[%clk 0:01:21.4]}
15... Nc5 {[%clk 0:01:27.3]} 16. Bxf6 {[%clk 0:01:17.4]} 16... Nd3 {[%clk
0:01:27.7]} 17. Qh4 {[%clk 0:01:01.7]} 17... Qa5 {[%clk 0:01:12.7]} 18. Re3
{[%clk 0:00:35.1]} 18... Nxb2 {[%clk 0:00:53.3]} 19. Qh6 {[%clk 0:00:32.5]} 1-0

[Event "Early-Titled-Tuesday-Blitz-December-26-2023"]
[Site "Chess.com"]
[Date "2023.12.26"]
[Round "8"]
[White "viviania"]
[Black "Angry_Twin"]
[Result "0-1"]
[WhiteElo "2862"]
[BlackElo "2954"]
[TimeControl "180+1"]
[EndTime "9:27:32 PST"]
[Termination "Angry_Twin won by resignation"]

1. d4 {[%clk 0:02:59.3]} 1... Nf6 {[%clk 0:03:00.1]} 2. c4 {[%clk 0:02:59.3]}
2... e6 {[%clk 0:03:00.8]} 3. Nc3 {[%clk 0:02:59.4]} 3... Bb4 {[%clk 0:03:00.7]}
4. e3 {[%clk 0:02:59.7]} 4... d5 {[%clk 0:02:58.9]} 5. a3 {[%clk 0:02:56.8]}
5... Bxc3+ {[%clk 0:02:57.6]} 6. bxc3 {[%clk 0:02:56.6]} 6... c6 {[%clk
0:02:56.2]} 7. a4 {[%clk 0:02:40.4]} 7... O-O {[%clk 0:02:54.4]} 8. Ba3 {[%clk
0:02:32.5]} 8... Re8 {[%clk 0:02:54.7]} 9. Nf3 {[%clk 0:02:32.8]} 9... b6 {[%clk
0:02:55]} 10. cxd5 {[%clk 0:02:32.2]} 10... exd5 {[%clk 0:02:33.1]} 11. c4
{[%clk 0:02:26.1]} 11... Ba6 {[%clk 0:02:27.9]} 12. Rc1 {[%clk 0:02:26.1]} 12...
dxc4 {[%clk 0:01:57]} 13. Bxc4 {[%clk 0:02:25.1]} 13... Bxc4 {[%clk 0:01:57.3]}
14. Rxc4 {[%clk 0:02:25.1]} 14... b5 {[%clk 0:01:57.9]} 15. Rc2 {[%clk
0:01:28.4]} 15... Qa5+ {[%clk 0:01:53.6]} 16. Nd2 {[%clk 0:01:28.3]} 16... Qxa4
{[%clk 0:01:50.7]} 17. Bd6 {[%clk 0:01:28]} 17... Qxd4 {[%clk 0:01:46.5]} 18.
Bg3 {[%clk 0:01:24.7]} 18... Qd3 {[%clk 0:01:43.7]} 19. Nf3 {[%clk 0:01:22.3]}
19... Qxd1+ {[%clk 0:01:39.6]} 20. Kxd1 {[%clk 0:01:22.5]} 20... a5 {[%clk
0:01:40.1]} 21. Ke2 {[%clk 0:01:22.3]} 21... Nbd7 {[%clk 0:01:30.7]} 22. Rxc6
{[%clk 0:01:21]} 22... b4 {[%clk 0:01:31.1]} 23. Nd4 {[%clk 0:01:10.8]} 23... a4
{[%clk 0:01:28.9]} 24. Nb5 {[%clk 0:01:10.9]} 24... Rec8 {[%clk 0:01:22.3]} 25.
Nc7 {[%clk 0:01:07.6]} 25... Ra5 {[%clk 0:01:21.1]} 26. Rhc1 {[%clk 0:00:53.6]}
26... h6 {[%clk 0:01:14]} 27. Nd5 {[%clk 0:00:45.7]} 27... Rxc6 {[%clk
0:01:13.6]} 28. Ne7+ {[%clk 0:00:46]} 28... Kh7 {[%clk 0:01:14.3]} 29. Nxc6
{[%clk 0:00:46.1]} 29... Rb5 {[%clk 0:01:14.8]} 30. Bd6 {[%clk 0:00:40.1]} 30...
b3 {[%clk 0:01:14.2]} 31. Ba3 {[%clk 0:00:40]} 31... b2 {[%clk 0:00:59]} 32. Rb1
{[%clk 0:00:39.1]} 32... Rb3 {[%clk 0:00:59.7]} 33. Bxb2 {[%clk 0:00:39.3]}
33... a3 {[%clk 0:01:00.1]} 0-1